fUST/lending_fUST_20241111
["ID","MTS","AMOUNT","RATE_DAILY","PERIOD"]
[341875934,1731262244333,-500.0,0.00025479,2]
[341875935,1731262244341,-500.0,0.00025479,2]
[341875937,1731262244350,-540.58,0.00025479,2]
[341875939,1731262244359,-151.0,0.00025479,7]
[341875940,1731262244368,-500.0,0.00025479,2]
[341875941,1731262244377,-500.0,0.00025479,2]
[341875942,1731262244386,-151.0,0.00025479,7]
[341875943,1731262244395,-1979.96,0.00025479,2]
[341875944,1731262244404,-1005.32,0.00025479,2]
[341875945,1731262244413,-151.0,0.00025479,7]
[341875946,1731262244423,-151.0,0.00025479,7]
[341875947,1731262244432,-151.0,0.00025479,7]
[341875948,1731262244441,-500.0,0.00025479,2]
[341875949,1731262244451,-2893.25,0.00025479,2]
[341875950,1731262244460,-500.0,0.00025479,2]
[341875951,1731262244469,-672.94,0.00025479,2]
[341875952,1731262244478,-943.85,0.00025479,2]
[341875953,1731262244488,-500.0,0.00025479,2]
[341875954,1731262244498,-946.67,0.00025479,2]
[341875955,1731262244507,-500.0,0.00025479,2]
[341875956,1731262244516,-500.0,0.00025479,2]
[341875957,1731262244525,-220.715625,0.00025479,7]
[341875958,1731262244534,-666.37,0.00025479,2]
[341875960,1731262244544,-220.715625,0.00025479,7]
[341875962,1731262244553,-500.0,0.00025479,2]
[341875964,1731262244562,-500.0,0.00025479,2]
[341875966,1731262244571,-500.0,0.00025479,2]
[341875968,1731262244580,-888.03,0.00025479,2]
[341875970,1731262244589,-255.409528,0.00025479,7]
[341875972,1731262244598,-151.0,0.00025479,7]
[341875974,1731262244610,-500.0,0.00025479,2]
[341875976,1731262244620,-883.943464,0.00025479,7]
[341875978,1731262244630,-883.943464,0.00025479,7]
[341875980,1731262244639,-681.311157,0.00025479,7]
[341875982,1731262244649,-681.311157,0.00025479,7]
[341875984,1731262244658,-507.66,0.00025479,2]
[341875986,1731262244669,-397.140465,0.00025479,7]
[341875988,1731262244678,-500.0,0.00025479,2]
[341875990,1731262244689,-397.140465,0.00025479,7]
[341875992,1731262244698,-241.67489822,0.00025479,2]
[341875994,1731262244707,-500.0,0.00025479,2]
[341875996,1731262244716,-4319.08,0.00025479,2]
[341875998,1731262244731,-5053.75,0.00025479,2]
[341876000,1731262244740,-500.0,0.00025479,2]
[341876002,1731262244750,-726.76,0.00025479,2]
[341876003,1731262244759,-2071.51,0.00025479,2]
[341876005,1731262244768,-663.22,0.00025479,2]
[341876007,1731262244776,-500.0,0.00025479,2]
[341876009,1731262244785,-2075.82803374,0.00025544,2]
[341876011,1731262244794,-500.0,0.00025753,2]
[341876013,1731262244803,-500.0,0.00025753,2]
[341876015,1731262244812,-254.97,0.00025753,2]
[341876017,1731262244821,-400.8,0.00025753,2]
[341876019,1731262244830,-500.0,0.00025753,2]
[341876021,1731262244839,-500.0,0.00025753,2]
[341876023,1731262244849,-500.0,0.00025753,2]
[341876025,1731262244858,-151.0,0.00025753,7]
[341876027,1731262244867,-500.0,0.00025753,2]
[341876029,1731262244876,-500.0,0.00025753,2]
[341876031,1731262244885,-434.34474823,0.00025753,2]
[341876033,1731262244895,-500.0,0.00025753,2]
[341876035,1731262244904,-151.0,0.00025753,7]
[341876037,1731262244914,-151.0,0.00025753,7]
[341876039,1731262244923,-598.59,0.00025753,2]
[341876041,1731262244932,-271.13828,0.00025753,7]
[341876043,1731262244941,-151.0,0.00025753,7]
[341876045,1731262244951,-271.13828,0.00025753,7]
[341876047,1731262244960,-500.0,0.00025753,2]
[341876049,1731262244969,-500.0,0.00025753,2]
[341876051,1731262244981,-155.337223,0.00025753,7]
[341876053,1731262244990,-500.0,0.00025753,2]
[341876055,1731262244999,-186.21033587,0.00025753,2]
[341876057,1731262245009,-500.0,0.00025753,2]
[341876059,1731262245018,-799.798171,0.00025753,7]
[341876061,1731262245027,-1539.34,0.00025753,2]
[341876063,1731262245036,-799.798171,0.00025753,7]
[341876065,1731262245045,-500.0,0.00025753,2]
[341876067,1731262245055,-500.0,0.00025753,2]
[341876069,1731262245064,-744.767327,0.00025753,7]
[341876070,1731262245073,-744.767327,0.00025753,7]
[341876072,1731262245083,-500.0,0.00025753,2]
[341876075,1731262245092,-500.0,0.00025753,2]
[341876076,1731262245101,-456.55543709,0.00025753,2]
[341876078,1731262245111,-521.77,0.00025753,2]
[341876080,1731262245120,-253.508069,0.00025753,7]
[341876083,1731262245131,-1986.606925,0.00025753,7]
[341876084,1731262245140,-623.72,0.00025753,2]
[341876086,1731262245150,-253.508069,0.00025753,7]
[341876088,1731262245159,-1986.606925,0.00025753,7]
[341876090,1731262245168,-2328.93763925,0.00025753,7]
[341876105,1731262245312,-426.94893275,0.00025753,7]
[341876106,1731262245321,-183.874715,0.00025753,7]
[341876107,1731262245330,-105.62934031,0.00025753,7]
[341876108,1731262245341,-999.84461934,0.00025753,7]
[341876109,1731262245353,-632.63253685,0.00025753,7]
[341876110,1731262245364,-1017.7800755,0.00025753,7]
[341876111,1731262245374,-1506.19,0.00025753,2]
[341876112,1731262245383,-500.0,0.00025753,2]
[341876113,1731262245392,-183.874715,0.00025753,7]
[341876114,1731262245401,-382.282046,0.00025753,7]
[341876116,1731262245410,-382.282046,0.00025753,7]
[341876118,1731262245419,-151.0,0.00025753,7]
[341876119,1731262245428,-500.0,0.00025753,2]
[341876120,1731262245437,-500.0,0.00025753,2]
[341876123,1731262245447,-518.43,0.00025753,2]
[341876124,1731262245456,-331.51400766,0.00025753,2]
[341876125,1731262245465,-951.78,0.00025753,2]
[341876126,1731262245474,-500.0,0.00025753,2]
[341876127,1731262245489,-500.0,0.00025753,2]
[341876128,1731262245498,-500.0,0.00025753,2]
[341876129,1731262245507,-500.0,0.00025753,2]
[341876130,1731262245516,-457.725087,0.00025753,2]
[341876149,1731262245763,-500.0,0.00024657,2]
[341876151,1731262245774,-121.134913,0.00025753,2]
[341876153,1731262245785,-500.0,0.00025753,2]
[341876155,1731262245796,-261.365087,0.00025753,2]
[341876171,1731262245950,-585.36,0.00024657,2]
[341876173,1731262245960,-17541.07217963,0.00024831,3]
[341876175,1731262245971,-393.235929,0.00025479,7]
[341876177,1731262245986,-238.634913,0.00025753,2]
[341876179,1731262245996,-537.86847842,0.00025753,2]
[341876181,1731262246007,-235.30590376,0.00025753,2]
[341876183,1731262246017,-500.0,0.00025753,2]
[341876185,1731262246027,-500.0,0.00025753,2]
[341876186,1731262246036,-500.0,0.00025753,2]
[341876188,1731262246046,-600.73877761,0.00025753,2]
[341876190,1731262246056,-879.92,0.00025753,2]
[341876192,1731262246067,-12668.86,0.00025753,2]
[341876195,1731262246078,-500.0,0.00025753,2]
[341876197,1731262246088,-500.0,0.00025753,2]
[341876199,1731262246098,-151.0,0.00025753,7]
[341876201,1731262246108,-704.79,0.00025753,2]
[341876203,1731262246118,-195.16707724,0.00025753,2]
[341876205,1731262246128,-943.7,0.00025753,2]
[341876207,1731262246138,-500.0,0.00025753,2]
[341876209,1731262246148,-214.90517348,0.00025753,2]
[341876211,1731262246157,-524.08,0.00025753,2]
[341876213,1731262246167,-500.0,0.00025753,2]
[341876214,1731262246176,-500.0,0.00025753,2]
[341876216,1731262246186,-647.20661665,0.00025753,2]
[341876218,1731262246196,-500.0,0.00025753,2]
[341876220,1731262246206,-1979.96,0.00025753,2]
[341876222,1731262246216,-790.91851053,0.00025753,2]
[341876230,1731262246368,-500.0,0.00024657,2]
[341876232,1731262246392,-500.0,0.00024657,2]
[341876234,1731262246414,-500.0,0.00024657,2]
[341876236,1731262246434,-500.0,0.00024931,2]
[341876238,1731262246456,-500.0,0.00024931,2]
[341876240,1731262246473,-500.0,0.00024931,2]
[341876241,1731262246488,-152.755083,0.00025479,7]
[341876244,1731262246499,-214.40148947,0.00025753,2]
[341876246,1731262246509,-151.0,0.00025753,7]
[341876248,1731262246519,-2893.25,0.00025753,2]
[341876250,1731262246529,-500.0,0.00025753,2]
[341876252,1731262246539,-672.94,0.00025753,2]
[341876254,1731262246548,-943.85,0.00025753,2]
[341876256,1731262246558,-500.0,0.00025753,2]
[341876258,1731262246568,-946.67,0.00025753,2]
[341876260,1731262246579,-500.0,0.00025753,2]
[341876262,1731262246589,-500.0,0.00025753,2]
[341876264,1731262246599,-666.37,0.00025753,2]
[341876266,1731262246610,-164.5318463,0.00025753,2]
[341876268,1731262246620,-500.0,0.00025753,2]
[341876270,1731262246632,-888.03,0.00025753,2]
[341876272,1731262246642,-500.0,0.00025753,2]
[341876274,1731262246652,-681.311157,0.00025753,7]
[341876276,1731262246663,-681.311157,0.00025753,7]
[341876278,1731262246673,-507.66,0.00025753,2]
[341876280,1731262246684,-397.140465,0.00025753,7]
[341876282,1731262246694,-393.51383713,0.00025753,2]
[341876284,1731262246706,-397.140465,0.00025753,7]
[341876286,1731262246716,-500.0,0.00025753,2]
[341876288,1731262246729,-4319.08,0.00025753,2]
[341876291,1731262246740,-5053.75,0.00025753,2]
[341876292,1731262246750,-726.76,0.00025753,2]
[341876294,1731262246760,-2071.51,0.00025753,2]
[341876297,1731262246770,-663.22,0.00025753,2]
[341876299,1731262246780,-500.0,0.00025753,2]
[341876301,1731262246790,-393.235929,0.00025753,7]
[341876303,1731262246800,-500.0,0.00025757,2]
[341876305,1731262246810,-333.09808,0.00025806,7]
[341876307,1731262246820,-333.09808,0.00025806,7]
[341876325,1731262246829,-2812.06451252,0.00025806,2]
[341876327,1731262247001,-1129.58707426,0.00025881,2]
[341876329,1731262247011,-155.0,0.0002589,2]
[341876331,1731262247021,-957.50371,0.00025927,7]
[341876333,1731262247031,-957.50371,0.00025927,7]
[341876335,1731262247041,-151.0,0.00025927,7]
[341876337,1731262247050,-196.334041,0.00025927,7]
[341876339,1731262247060,-151.0,0.00025927,7]
[341876341,1731262247069,-183.704,0.0002595,11]
[341876343,1731262247079,-500.0,0.00026026,2]
[341876345,1731262247088,-500.0,0.00026026,2]
[341876347,1731262247097,-331.18643918,0.00026026,2]
[341876349,1731262247107,-441.86006314,0.00026026,2]
[341876351,1731262247116,-392.38229779,0.00026026,2]
[341876353,1731262247125,-500.0,0.00026026,2]
[341876355,1731262247134,-484.44779556,0.00026026,2]
[341876357,1731262247143,-544.50951593,0.00026026,2]
[341876359,1731262247152,-500.0,0.00026026,2]
[341876361,1731262247161,-506.30619849,0.00026026,2]
[341876363,1731262247170,-500.0,0.00026026,2]
[341876365,1731262247179,-296.52141603,0.00026026,2]
[341876367,1731262247189,-500.0,0.00026026,2]
[341876369,1731262247198,-500.0,0.00026026,2]
[341876371,1731262247207,-500.0,0.00026026,2]
[341876373,1731262247215,-500.0,0.00026026,2]
[341876375,1731262247225,-500.0,0.00026026,2]
[341876377,1731262247236,-500.0,0.00026027,2]
[341876379,1731262247245,-500.0,0.00026027,2]
[341876381,1731262247254,-151.0,0.00026027,7]
[341876383,1731262247263,-500.0,0.00026027,2]
[341876385,1731262247273,-500.0,0.00026027,2]
[341876387,1731262247282,-500.0,0.00026027,2]
[341876389,1731262247291,-500.0,0.00026027,2]
[341876391,1731262247300,-500.0,0.00026027,2]
[341876393,1731262247310,-598.59,0.00026027,2]
[341876395,1731262247319,-500.0,0.00026027,2]
[341876398,1731262247328,-500.0,0.00026027,2]
[341876400,1731262247338,-583.044834,0.00026027,7]
[341876401,1731262247347,-500.0,0.00026027,2]
[341876404,1731262247356,-151.0,0.00026027,7]
[341876406,1731262247366,-500.0,0.00026027,2]
[341876408,1731262247375,-1539.34,0.00026027,2]
[341876410,1731262247385,-500.0,0.00026027,2]
[341876412,1731262247394,-173.05786186,0.00026027,2]
[341876414,1731262247403,-500.0,0.00026027,2]
[341876416,1731262247413,-500.0,0.00026027,2]
[341876418,1731262247422,-521.77,0.00026027,2]
[341876420,1731262247432,-623.72,0.00026027,2]
[341876422,1731262247441,-1506.19,0.00026027,2]
[341876424,1731262247450,-328.25,0.00026027,2]
[341876426,1731262247459,-500.0,0.00026027,2]
[341876428,1731262247470,-500.0,0.00026027,2]
[341876430,1731262247481,-151.0,0.00026027,7]
[341876432,1731262247491,-164.043212,0.00026027,7]
[341876434,1731262247500,-374.99876,0.00026027,7]
[341876436,1731262247510,-951.78,0.00026027,2]
[341876438,1731262247519,-164.043212,0.00026027,7]
[341876440,1731262247528,-374.99876,0.00026027,7]
[341876442,1731262247537,-153.693762,0.00026027,7]
[341876444,1731262247546,-525.04158223,0.00026027,2]
[341876445,1731262247555,-500.0,0.00026027,2]
[341876447,1731262247564,-500.0,0.00026027,2]
[341876449,1731262247573,-500.0,0.00026027,2]
[341876451,1731262247582,-578.86,0.00026027,2]
[341876453,1731262247591,-556.20741071,0.00026027,2]
[341876455,1731262247601,-500.0,0.00026027,2]
[341876457,1731262247613,-965.44425,0.00026027,7]
[341876460,1731262247622,-965.44425,0.00026027,7]
[341876462,1731262247632,-500.0,0.00026027,2]
[341876464,1731262247641,-879.92,0.00026027,2]
[341876466,1731262247650,-12668.86,0.00026027,2]
[341876468,1731262247659,-500.0,0.00026027,2]
[341876470,1731262247669,-704.79,0.00026027,2]
[341876472,1731262247677,-943.7,0.00026027,2]
[341876473,1731262247687,-524.08,0.00026027,2]
[341876476,1731262247697,-500.0,0.00026027,2]
[341876478,1731262247706,-500.0,0.00026027,2]
[341876480,1731262247716,-500.0,0.00026027,2]
[341876482,1731262247725,-1979.96,0.00026027,2]
[341876483,1731262247736,-1005.32,0.00026027,2]
[341876485,1731262247745,-151.0,0.00026027,7]
[341876488,1731262247754,-2893.25,0.00026027,2]
[341876490,1731262247763,-500.0,0.00026027,2]
[341876492,1731262247774,-672.94,0.00026027,2]
[341876494,1731262247783,-943.85,0.00026027,2]
[341876496,1731262247793,-500.0,0.00026027,2]
[341876498,1731262247801,-946.67,0.00026027,2]
[341876500,1731262247811,-500.0,0.00026027,2]
[341876502,1731262247820,-500.0,0.00026027,2]
[341876504,1731262247830,-220.715625,0.00026027,7]
[341876506,1731262247839,-666.37,0.00026027,2]
[341876508,1731262247848,-220.715625,0.00026027,7]
[341876510,1731262247858,-500.0,0.00026027,2]
[341876512,1731262247867,-888.03,0.00026027,2]
[341876514,1731262247877,-151.0,0.00026027,7]
[341876516,1731262247886,-500.0,0.00026027,2]
[341876518,1731262247895,-883.943464,0.00026027,7]
[341876520,1731262247904,-883.943464,0.00026027,7]
[341876522,1731262247914,-507.66,0.00026027,2]
[341876524,1731262247923,-500.0,0.00026027,2]
[341876526,1731262247933,-4319.08,0.00026027,2]
[341876528,1731262247943,-5053.75,0.00026027,2]
[341876530,1731262247952,-726.76,0.00026027,2]
[341876532,1731262247961,-2071.51,0.00026027,2]
[341876534,1731262247971,-663.22,0.00026027,2]
[341876536,1731262247982,-500.0,0.00026027,2]
[341876538,1731262247992,-2075.82803374,0.00026038,2]
[341876540,1731262248001,-1000.0,0.00026042,2]
[341876542,1731262248012,-156.816,0.0002627,2]
[341876544,1731262248021,-500.0,0.00026301,2]
[341876546,1731262248031,-151.0,0.00026301,7]
[341876548,1731262248041,-500.0,0.00026301,2]
[341876550,1731262248050,-151.0,0.00026301,7]
[341876552,1731262248060,-151.0,0.00026301,7]
[341876554,1731262248069,-184.006338,0.00026301,7]
[341876556,1731262248080,-151.0,0.00026301,7]
[341876558,1731262248089,-184.006338,0.00026301,7]
[341876560,1731262248099,-500.0,0.00026301,2]
[341876562,1731262248109,-479.9216235,0.00026301,2]
[341876564,1731262248119,-500.0,0.00026301,2]
[341876566,1731262248129,-500.0,0.00026301,2]
[341876568,1731262248139,-500.0,0.00026301,2]
[341876570,1731262248149,-151.0,0.00026301,7]
[341876572,1731262248159,-182.777689,0.00026301,7]
[341876574,1731262248168,-598.59,0.00026301,2]
[341876576,1731262248177,-271.13828,0.00026301,7]
[341876578,1731262248186,-271.13828,0.00026301,7]
[341876580,1731262248197,-558.70516655,0.00026301,2]
[341876582,1731262248206,-583.044834,0.00026301,7]
[341876584,1731262248215,-500.0,0.00026301,2]
[341876586,1731262248225,-151.0,0.00026301,7]
[341876588,1731262248239,-500.0,0.00026301,2]
[341876590,1731262248249,-799.798171,0.00026301,7]
[341876592,1731262248259,-1539.34,0.00026301,2]
[341876594,1731262248268,-799.798171,0.00026301,7]
[341876597,1731262248278,-500.0,0.00026301,2]
[341876598,1731262248287,-744.767327,0.00026301,7]
[341876601,1731262248297,-744.767327,0.00026301,7]
[341876603,1731262248307,-500.0,0.00026301,2]
[341876605,1731262248317,-500.0,0.00026301,2]
[341876607,1731262248327,-521.77,0.00026301,2]
[341876609,1731262248337,-253.508069,0.00026301,7]
[341876611,1731262248346,-1986.606925,0.00026301,7]
[341876613,1731262248356,-623.72,0.00026301,2]
[341876615,1731262248366,-253.508069,0.00026301,7]
[341876617,1731262248375,-1986.606925,0.00026301,7]
[341876619,1731262248384,-2755.886572,0.00026301,7]
[341876621,1731262248395,-183.874715,0.00026301,7]
[341876623,1731262248405,-2755.886572,0.00026301,7]
[341876625,1731262248414,-1506.19,0.00026301,2]
[341876626,1731262248423,-183.874715,0.00026301,7]
[341876628,1731262248432,-382.282046,0.00026301,7]
[341876630,1731262248441,-382.282046,0.00026301,7]
[341876632,1731262248450,-151.0,0.00026301,7]
[341876634,1731262248460,-500.0,0.00026301,2]
[341876636,1731262248469,-500.0,0.00026301,2]
[341876637,1731262248482,-151.0,0.00026301,7]
[341876639,1731262248491,-164.043212,0.00026301,7]
[341876641,1731262248501,-374.99876,0.00026301,7]
[341876643,1731262248511,-951.78,0.00026301,2]
[341876645,1731262248520,-164.043212,0.00026301,7]
[341876647,1731262248529,-374.99876,0.00026301,7]
[341876649,1731262248538,-515.58,0.00026301,2]
[341876650,1731262248547,-500.0,0.00026301,2]
[341876652,1731262248556,-500.0,0.00026301,2]
[341876654,1731262248566,-578.86,0.00026301,2]
[341876656,1731262248575,-500.0,0.00026301,2]
[341876658,1731262248585,-965.44425,0.00026301,7]
[341876660,1731262248594,-965.44425,0.00026301,7]
[341876662,1731262248605,-500.0,0.00026301,2]
[341876664,1731262248617,-879.92,0.00026301,2]
[341876665,1731262248626,-12668.86,0.00026301,2]
[341876667,1731262248636,-500.0,0.00026301,2]
[341876669,1731262248646,-151.0,0.00026301,7]
[341876671,1731262248655,-704.79,0.00026301,2]
[341876673,1731262248664,-943.7,0.00026301,2]
[341876675,1731262248674,-957.50371,0.00026301,7]
[341876676,1731262248684,-524.08,0.00026301,2]
[341876678,1731262248694,-957.50371,0.00026301,7]
[341876680,1731262248705,-500.0,0.00026301,2]
[341876682,1731262248715,-500.0,0.00026301,2]
[341876684,1731262248724,-151.0,0.00026301,7]
[341876686,1731262248735,-500.0,0.00026301,2]
[341876688,1731262248745,-1979.96,0.00026301,2]
[341876689,1731262248755,-1005.32,0.00026301,2]
[341876691,1731262248765,-151.0,0.00026301,7]
[341876693,1731262248774,-151.0,0.00026301,7]
[341876695,1731262248784,-151.0,0.00026301,7]
[341876697,1731262248793,-2893.25,0.00026301,2]
[341876699,1731262248803,-500.0,0.00026301,2]
[341876701,1731262248812,-672.94,0.00026301,2]
[341876703,1731262248821,-943.85,0.00026301,2]
[341876705,1731262248830,-500.0,0.00026301,2]
[341876707,1731262248840,-333.09808,0.00026301,7]
[341876708,1731262248849,-946.67,0.00026301,2]
[341876710,1731262248858,-333.09808,0.00026301,7]
[341876712,1731262248867,-500.0,0.00026301,2]
[341876714,1731262248876,-500.0,0.00026301,2]
[341876716,1731262248886,-220.715625,0.00026301,7]
[341876718,1731262248896,-666.37,0.00026301,2]
[341876720,1731262248906,-220.715625,0.00026301,7]
[341876722,1731262248916,-500.0,0.00026301,2]
[341876724,1731262248926,-888.03,0.00026301,2]
[341876726,1731262248935,-151.0,0.00026301,7]
[341876727,1731262248944,-312.65696843,0.00026301,2]
[341876729,1731262248953,-883.943464,0.00026301,7]
[341876731,1731262248963,-883.943464,0.00026301,7]
[341876733,1731262248972,-681.311157,0.00026301,7]
[341876735,1731262248984,-681.311157,0.00026301,7]
[341876737,1731262248994,-507.66,0.00026301,2]
[341876739,1731262249004,-397.140465,0.00026301,7]
[341876741,1731262249014,-397.140465,0.00026301,7]
[341876742,1731262249023,-500.0,0.00026301,2]
[341876744,1731262249033,-4319.08,0.00026301,2]
[341876746,1731262249042,-5053.75,0.00026301,2]
[341876748,1731262249052,-726.76,0.00026301,2]
[341876750,1731262249062,-2071.51,0.00026301,2]
[341876752,1731262249070,-663.22,0.00026301,2]
[341876754,1731262249079,-500.0,0.00026301,2]
[341876755,1731262249088,-393.235929,0.00026301,7]
[341876757,1731262249097,-1000.0,0.00026342,2]
[341876759,1731262249107,-1000.0,0.00026342,2]
[341876761,1731262249116,-168.868781,0.00026372,2]
[341876763,1731262249125,-1129.58707426,0.00026384,2]
[341876765,1731262249135,-420.0,0.00026416,2]
[341876767,1731262249144,-2812.06451252,0.00026431,2]
[341876769,1731262249153,-1608.3900005,0.000265,2]
[341876771,1731262249163,-465.91407361,0.00026516,2]
[341876773,1731262249172,-2075.82803374,0.00026531,2]
[341876774,1731262249181,-151.0,0.00026574,7]
[341876776,1731262249191,-500.0,0.00026575,2]
[341876778,1731262249200,-500.0,0.00026575,2]
[341876780,1731262249210,-500.0,0.00026575,2]
[341876782,1731262249219,-500.0,0.00026575,2]
[341876784,1731262249228,-500.0,0.00026575,2]
[341876786,1731262249238,-598.59,0.00026575,2]
[341876788,1731262249248,-500.0,0.00026575,2]
[341876790,1731262249257,-205.13073599,0.00026575,2]
[341876791,1731262249267,-1539.34,0.00026575,2]
[341876793,1731262249276,-500.0,0.00026575,2]
[341876795,1731262249286,-500.0,0.00026575,2]
[341876797,1731262249296,-500.0,0.00026575,2]
[341876799,1731262249305,-521.77,0.00026575,2]
[341876801,1731262249315,-623.72,0.00026575,2]
[341876803,1731262249327,-1506.19,0.00026575,2]
[341876804,1731262249337,-440.60899483,0.00026575,2]
[341876806,1731262249347,-500.0,0.00026575,2]
[341876808,1731262249357,-951.78,0.00026575,2]
[341876810,1731262249367,-500.0,0.00026575,2]
[341876812,1731262249377,-500.0,0.00026575,2]
[341876814,1731262249387,-578.86,0.00026575,2]
[341876816,1731262249397,-500.0,0.00026575,2]
[341876818,1731262249407,-500.0,0.00026575,2]
[341876820,1731262249416,-879.92,0.00026575,2]
[341876822,1731262249427,-12668.86,0.00026575,2]
[341876824,1731262249437,-500.0,0.00026575,2]
[341876825,1731262249447,-704.79,0.00026575,2]
[341876827,1731262249456,-943.7,0.00026575,2]
[341876829,1731262249465,-524.08,0.00026575,2]
[341876831,1731262249476,-500.0,0.00026575,2]
[341876833,1731262249489,-500.0,0.00026575,2]
[341876835,1731262249499,-500.0,0.00026575,2]
[341876837,1731262249509,-1979.96,0.00026575,2]
[341876839,1731262249518,-1005.32,0.00026575,2]
[341876841,1731262249528,-2893.25,0.00026575,2]
[341876842,1731262249537,-500.0,0.00026575,2]
[341876844,1731262249547,-672.94,0.00026575,2]
[341876846,1731262249556,-943.85,0.00026575,2]
[341876848,1731262249566,-500.0,0.00026575,2]
[341876850,1731262249575,-946.67,0.00026575,2]
[341876852,1731262249584,-500.0,0.00026575,2]
[341876854,1731262249594,-500.0,0.00026575,2]
[341876856,1731262249605,-666.37,0.00026575,2]
[341876857,1731262249614,-500.0,0.00026575,2]
[341876859,1731262249624,-888.03,0.00026575,2]
[341876861,1731262249635,-507.66,0.00026575,2]
[341876863,1731262249644,-500.0,0.00026575,2]
[341876865,1731262249653,-4319.08,0.00026575,2]
[341876867,1731262249663,-5053.75,0.00026575,2]
[341876869,1731262249673,-726.76,0.00026575,2]
[341876871,1731262249682,-2071.51,0.00026575,2]
[341876873,1731262249691,-663.22,0.00026575,2]
[341876875,1731262249700,-500.0,0.00026575,2]
[341876877,1731262249710,-286.580115,0.00026631,7]
[341876879,1731262249719,-286.580115,0.00026631,7]
[341876880,1731262249729,-151.0,0.00026631,7]
[341876882,1731262249740,-151.0,0.00026631,7]
[341876895,1731262249858,-81922.09735552,0.00026631,2]
[341876897,1731262249868,-151.0,0.00026631,7]
[341876899,1731262249877,-1006.294535,0.00026631,7]
[341876901,1731262249886,-1006.294535,0.00026631,7]
[341876903,1731262249895,-151.0,0.00026631,7]
[341876904,1731262249904,-151.0,0.00026631,7]
[341876906,1731262249913,-184.006338,0.00026631,7]
[341876908,1731262249922,-184.006338,0.00026631,7]
[341876910,1731262249931,-151.0,0.00026631,7]
[341876912,1731262249940,-271.13828,0.00026631,7]
[341876914,1731262249949,-271.13828,0.00026631,7]
[341876916,1731262249958,-583.044834,0.00026631,7]
[341876918,1731262249968,-151.0,0.00026631,7]
[341876920,1731262249977,-799.798171,0.00026631,7]
[341876922,1731262249988,-799.798171,0.00026631,7]
[341876923,1731262249997,-744.767327,0.00026631,7]
[341876925,1731262250006,-744.767327,0.00026631,7]
[341876927,1731262250015,-253.508069,0.00026631,7]
[341876929,1731262250024,-1986.606925,0.00026631,7]
[341876931,1731262250033,-1986.606925,0.00026631,7]
[341876933,1731262250042,-253.508069,0.00026631,7]
[341876935,1731262250051,-2755.886572,0.00026631,7]
[341876936,1731262250060,-183.874715,0.00026631,7]
[341876938,1731262250069,-2755.886572,0.00026631,7]
[341876940,1731262250078,-183.874715,0.00026631,7]
[341876942,1731262250087,-382.282046,0.00026631,7]
[341876944,1731262250097,-382.282046,0.00026631,7]
[341876945,1731262250106,-151.0,0.00026631,7]
[341876947,1731262250116,-164.043212,0.00026631,7]
[341876949,1731262250124,-151.0,0.00026631,7]
[341876951,1731262250134,-374.99876,0.00026631,7]